bitfinex-derivatives/quotes_SOLF0:USTF0_20241008
["timestamp","ask_amount","ask_price","bid_price","bid_amount"]
[1728392861970,21.68,143.17,143.13,3.4943]
[1728392862162,16.78,143.16,143.09,0.12502]
[1728392862379,0.12502,143.21,143.09,0.12502]
[1728392862380,16.78,143.18,143.09,25.28587391]
[1728392862679,4.9,143.17,143.09,25.28587391]
[1728392863078,4.9,143.17,143.15,3.4939]
[1728392863268,4.9,143.17,143.09,21.80502]
[1728392863466,16.78,143.18,143.09,21.80502]
[1728392863780,4.9,143.19,143.11,16.78]
[1728392863980,4.9,143.19,143.12,4.9]
[1728392864180,4.9,143.19,143.18,3.4933]
[1728392865086,0.12502,143.21,143.13,18.2026]
[1728392865305,5.02502,143.21,143.13,18.2026]
[1728392865681,8.51772,143.21,143.18,3.4932]
[1728392865877,25.29772,143.21,143.18,3.4932]
[1728392866386,8.51772,143.21,143.18,3.4932]
[1728392866580,10.74,143.19,143.18,3.4932]
[1728392870985,10.74,143.19,143.14,13.4052]
[1728392871385,10.74,143.19,143.14,2.6652]
[1728392871585,10.74,143.17,143.16,3.4936]
[1728392871786,10.74,143.18,143.14,2.6652]
[1728392872290,10.74,143.18,143.17,3.4933]
[1728392872675,10.74,143.19,143.16,10.74]
[1728392873285,10.74,143.19,143.18,3.4933]
[1728392874705,0.12502,143.21,143.17,10.74]
[1728392875389,0.12502,143.21,143.2,3.4928]
[1728392875987,0.12502,143.21,143.17,10.74]
[1728392876190,10.86502,143.21,143.19,3.4928]
[1728392877586,10.86502,143.21,143.16,10.74]
[1728392877788,10.86502,143.21,143.2,3.4928]
[1728392880091,0.12502,143.21,143.2,3.4928]
[1728392880287,10.86502,143.21,143.2,3.4928]
[1728392880588,0.12502,143.21,143.2,3.4928]
[1728392883400,4.96,143.25,143.2,14.2328]
[1728392883687,5.08502,143.27,143.26,3.4913]
[1728392884478,0.12502,143.27,143.26,3.4913]
[1728392886890,0.12502,143.27,143.26,14.2313]
[1728392887095,96.7774716,143.33,143.26,10.74]
[1728392887292,96.7774716,143.33,143.29,10.74]
[1728392887793,96.7774716,143.33,143.32,3.4899]
[1728392887992,0.12502,143.33,143.32,3.4899]
[1728392888198,3.4904,143.3,143.27,3.491]
[1728392888397,10.74,143.28,143.27,3.491]
[1728392891296,10.74,143.3,143.26,10.74]
[1728392892100,10.74,143.3,143.29,3.4906]
[1728392892697,10.74,143.3,143.26,10.74]
[1728392892995,4.96,143.32,143.25,7.6606]
[1728392893195,10.74,143.27,143.25,2.7006]
[1728392893589,10.74,143.27,143.26,3.4913]
[1728392894505,20.2508,143.29,143.26,3.4913]
[1728392895595,16.76,143.29,143.22,1.4075]
[1728392895793,4.98,143.29,143.18,2.8188]
[1728392896003,16.76,143.25,143.2,4.98]
[1728392896400,20.2517,143.25,143.22,3.4922]
[1728392897000,3.492,143.24,143.21,3.61752]
[1728392897199,16.76,143.25,143.21,0.12502]
[1728392897698,20.2517,143.25,143.22,3.4923]
[1728392899709,3.4918,143.24,143.22,3.4923]
[1728392899910,16.76,143.25,143.22,3.4923]
[1728392900408,16.76,143.25,143.21,0.12502]
[1728392900409,16.76,143.25,143.23,3.4919]
[1728392900805,16.76,143.25,143.21,0.12502]
[1728392901006,4.98,143.26,143.24,3.4918]
[1728392901311,16.76,143.27,143.21,0.12502]
[1728392901608,4.1431,143.29,143.21,0.12502]
[1728392901609,25.2306,143.29,143.21,0.12502]
[1728392902205,25.2306,143.29,143.26,3.4912]
[1728392902599,25.2306,143.29,143.23,3.492]
[1728392902812,25.2306,143.29,143.21,0.12502]
[1728392903006,25.2306,143.29,143.23,4.98]
[1728392903207,21.74,143.29,143.23,4.98]
[1728392903406,21.74,143.29,143.27,3.491]
[1728392904410,21.74,143.29,143.23,4.98]
[1728392904615,16.76,143.31,143.23,4.98]
[1728392904912,79.5509,143.34,143.23,4.98]
[1728392904913,16.88502,143.33,143.24,21.0409]
[1728392905217,3.49,143.32,143.3,3.4903]
[1728392906217,20.37472,143.33,143.31,3.49]
[1728392907005,20.37472,143.33,143.26,4.98]
[1728392907212,20.37472,143.33,143.3,3.4902]
[1728392908212,20.37472,143.33,143.31,3.4901]
[1728392908710,0.12502,143.33,143.26,4.98]
[1728392909912,0.12502,143.33,143.31,3.49]
[1728392911015,0.12502,143.33,143.26,4.98]
[1728392913219,0.12502,143.33,143.31,3.49]
[1728392914506,3.61472,143.33,143.31,3.49]
[1728392915918,0.12502,143.33,143.31,3.49]
[1728392916511,10.85502,143.33,143.31,3.49]
[1728392919522,14.34462,143.33,143.31,3.49]
[1728392921226,10.85502,143.33,143.31,3.49]
[1728392922354,10.85502,143.33,143.25,3.42159422]
[1728392922534,10.73,143.3,143.26,4.98]
[1728392923025,10.73,143.3,143.29,3.4906]
[1728392923422,10.73,143.31,143.27,10.73]
[1728392923637,10.73,143.31,143.3,3.4903]
[1728392924427,10.73,143.31,143.29,3.4905]
[1728392925227,5.10502,143.33,143.27,10.73]
[1728392925524,0.12502,143.33,143.32,3.4899]
[1728392927431,10.85502,143.33,143.31,3.49]
[1728392927636,10.85502,143.33,143.29,4.98]
[1728392927837,10.73,143.31,143.27,4.98]
[1728392928530,10.73,143.31,143.29,3.4905]
[1728392928931,10.73,143.31,143.26,15.71]
[1728392929233,14.2205,143.3,143.27,3.4909]
[1728392929732,14.2205,143.3,143.28,3.4907]
[1728392930326,0.12502,143.33,143.29,3.4905]
[1728392930327,14.2202,143.31,143.29,3.4905]
[1728392930938,10.73,143.31,143.29,3.4905]
[1728392933935,10.73,143.31,143.27,3.491]
[1728392934132,14.2204,143.3,143.25,15.71]
[1728392934328,10.73,143.3,143.25,15.71]
[1728392934530,10.73,143.3,143.25,4.98]
[1728392934838,14.2206,143.3,143.25,4.98]
[1728392935534,14.2206,143.3,143.27,3.4909]
[1728392936040,10.73,143.3,143.25,4.98]
[1728392936240,10.73,143.3,143.28,3.4907]
[1728392938841,0.12502,143.33,143.27,10.73]
[1728392939135,10.73,143.32,143.27,10.73]
[1728392939541,14.2199,143.32,143.29,3.4904]
[1728392939734,10.73,143.3,143.25,19.12926093]
[1728392940339,10.73,143.3,143.28,3.4907]
[1728392941239,10.73,143.3,143.25,15.71]
[1728392941443,10.73,143.3,143.29,3.4906]
[1728392941844,0.12502,143.33,143.28,10.73]
[1728392942040,0.12502,143.33,143.32,3.4899]
[1728392942437,0.12502,143.33,143.31,3.49]
[1728392943145,10.85502,143.33,143.31,3.49]
[1728392943548,14.34472,143.33,143.31,3.49]
[1728392944356,10.85502,143.33,143.31,3.49]
[1728392945352,10.73,143.32,143.29,3.4906]
[1728392945864,14.2199,143.32,143.28,4.98]
[1728392946156,14.2199,143.32,143.3,3.4903]
[1728392946959,14.2199,143.32,143.29,3.4905]
[1728392947456,3.4901,143.31,143.29,3.4905]
[1728392947857,10.73,143.31,143.29,3.4905]
[1728392948058,10.73,143.31,143.28,4.98]
[1728392948262,10.73,143.31,143.3,3.4904]
[1728392950155,14.2203,143.31,143.28,8.4707]
[1728392950357,10.73,143.29,143.25,4.98]
[1728392950863,14.2207,143.29,143.26,3.4911]
[1728392951160,14.2207,143.29,143.25,4.98]
[1728392951360,14.2207,143.29,143.27,3.491]
[1728392951859,10.73,143.29,143.27,3.491]
[1728392952161,10.73,143.28,143.21,0.12502]
[1728392952367,10.73,143.26,143.21,10.85502]
[1728392952554,10.73,143.26,143.21,15.83502]
[1728392952748,10.73,143.26,143.23,3.4919]
[1728392953265,14.2214,143.26,143.24,3.4918]
[1728392953450,14.2214,143.26,143.21,10.85502]
[1728392953650,10.73,143.25,143.21,0.12502]
[1728392953852,10.73,143.25,143.23,3.4919]
[1728392954053,10.73,143.27,143.22,10.73]
[1728392954463,10.73,143.27,143.26,3.4913]
[1728392954654,15.71,143.29,143.25,10.73]
[1728392955064,15.71,143.29,143.27,3.4909]
[1728392955660,19.2007,143.29,143.26,3.4912]
[1728392956960,15.71,143.29,143.26,3.4912]
[1728392957161,3.4911,143.27,143.25,3.4916]
[1728392957361,3.4911,143.27,143.22,5.0]
[1728392957362,10.73,143.26,143.22,5.0]
[1728392957761,10.73,143.26,143.25,3.4916]
[1728392958466,14.221,143.28,143.25,3.4916]
[1728392959367,10.73,143.28,143.21,0.12502]
[1728392959665,10.73,143.25,143.21,5.12502]
[1728392959969,10.73,143.24,143.22,3.4922]
[1728392960868,10.73,143.25,143.23,3.4921]
[1728392961270,8.4915,143.26,143.21,10.85502]
[1728392961271,19.2215,143.26,143.21,10.85502]
[1728392961978,15.73,143.26,143.21,10.85502]
[1728392962273,15.73,143.26,143.25,3.4916]
[1728392962969,19.2216,143.26,143.22,3.4922]
[1728392963273,15.73,143.26,143.21,0.12502]
[1728392963460,10.73,143.26,143.21,0.12502]
[1728392964266,10.73,143.25,143.22,3.4922]
[1728392964664,10.73,143.25,143.21,0.12502]
[1728392965468,3.4919,143.24,143.22,3.4923]
[1728392967479,14.2217,143.25,143.22,3.4923]
[1728392968477,10.73,143.25,143.23,3.4919]
[1728392968973,3.4914,143.26,143.21,0.12502]
[1728392968974,10.73,143.26,143.21,0.12502]
[1728392969178,15.73,143.27,143.23,10.73]
[1728392969677,15.73,143.27,143.25,3.4914]
[1728392970678,19.2212,143.27,143.25,3.4914]
[1728392971680,10.73,143.26,143.21,5.12502]
[1728392971882,14.2215,143.26,143.21,15.85502]
[1728392972272,10.73,143.26,143.21,15.85502]
[1728392972473,3.4916,143.25,143.22,3.4922]
[1728392972705,3.4916,143.25,143.21,15.85502]
[1728392972977,14.2216,143.25,143.21,5.12502]
[1728392973874,14.2216,143.25,143.22,3.4923]
[1728392974285,14.2216,143.25,143.21,5.12502]
[1728392974875,14.2216,143.25,143.22,3.4923]
[1728392975778,3.4916,143.25,143.23,3.4919]
[1728392978683,14.2214,143.26,143.23,3.4919]
[1728392979385,3.4914,143.26,143.24,3.4918]
[1728392979581,3.4914,143.26,143.22,10.73]
[1728392979582,10.73,143.27,143.22,10.73]
[1728392979785,15.73,143.28,143.23,10.73]
[1728392980081,3.4911,143.27,143.25,3.4915]
[1728392980277,10.73,143.27,143.23,10.73]
[1728392980687,10.73,143.27,143.25,3.4913]
[1728392980886,10.73,143.27,143.23,10.73]
[1728392981589,10.73,143.27,143.25,3.4914]
[1728392982084,10.73,143.27,143.23,10.73]
[1728392982586,10.73,143.27,143.21,15.85502]
[1728392982989,10.73,143.27,143.25,3.4914]
[1728392984590,10.73,143.27,143.21,15.85502]
[1728392984787,10.73,143.28,143.23,10.73]
[1728392984986,10.73,143.29,143.24,10.73]
[1728392985487,10.73,143.29,143.27,3.491]
[1728392985878,10.73,143.29,143.24,10.73]
[1728392986076,10.73,143.29,143.28,3.4908]
[1728392990280,4.96,143.31,143.3,3.4904]
[1728392990480,15.69,143.31,143.3,3.4904]
[1728392990684,10.73,143.31,143.3,3.4904]
[1728392991085,8.57482,143.33,143.3,3.4904]
[1728392991287,10.73,143.32,143.3,3.4904]
[1728392991886,10.73,143.32,143.31,3.4901]
[1728392992288,10.85502,143.33,143.31,3.4901]
[1728392993594,14.34472,143.33,143.31,3.4901]
[1728392994088,10.85502,143.33,143.28,10.73]
[1728392994286,10.85502,143.33,143.32,3.4899]
[1728392996894,10.85502,143.33,143.31,3.49]
[1728392998791,14.34462,143.33,143.31,3.49]
[1728392998990,10.73,143.32,143.29,3.4904]
[1728392999499,10.73,143.32,143.3,3.4903]
[1728392999695,10.73,143.32,143.28,4.94]
[1728393000389,10.73,143.3,143.26,4.94]
[1728393000791,10.73,143.3,143.28,3.4907]
[1728393001387,14.2203,143.31,143.29,3.4906]
[1728393002488,10.73,143.31,143.09,28.45090307]
[1728393002689,10.73,143.27,143.24,3.4916]
[1728393002903,10.73,143.27,143.22,10.73]
[1728393003090,10.73,143.26,143.21,10.85502]
[1728393003284,3.4919,143.24,143.21,14.34742]
[1728393003802,14.2219,143.24,143.21,3.61742]
[1728393004189,3.4917,143.25,143.22,3.4923]
[1728393004599,10.73,143.24,143.21,0.12502]
[1728393004901,14.222,143.24,143.21,3.61742]
[1728393005900,3.4921,143.23,143.21,0.12502]
[1728393007505,10.73,143.23,143.21,0.12502]
[1728393008294,14.2222,143.23,143.21,0.12502]
[1728393008503,10.73,143.23,143.21,0.12502]
[1728393008799,3.4923,143.22,143.21,0.12502]
[1728393009500,14.2223,143.22,143.21,0.12502]
[1728393014040,10.73,143.22,143.15,2.77392]
[1728393014201,4.96,143.23,143.15,2.77392]
[1728393014202,10.73,143.17,143.15,2.77392]
[1728393014604,10.73,143.17,143.15,6.26782]
[1728393014803,3.4933,143.18,143.15,6.26782]
[1728393015003,14.2233,143.18,143.15,6.26782]
[1728393015205,10.73,143.18,143.16,3.4936]
[1728393015506,10.73,143.2,143.15,13.50392]
[1728393015912,10.73,143.2,143.18,3.4932]
[1728393016204,4.0582,143.25,143.15,13.50392]
[1728393016409,8.4723,143.22,143.19,3.4929]
[1728393016710,10.73,143.21,143.19,3.4929]
[1728393019308,4.98,143.23,143.19,10.73]
[1728393019609,10.73,143.23,143.19,10.73]
[1728393019818,10.73,143.23,143.22,3.4922]
[1728393023312,10.73,143.23,143.21,3.4924]
[1728393026220,10.73,143.22,143.21,3.4924]
[1728393026419,10.73,143.22,143.19,3.4929]
[1728393026617,14.2229,143.2,143.15,18.48392]
[1728393026915,10.73,143.19,143.15,18.48392]
[1728393027111,10.73,143.19,143.15,7.75392]
[1728393027613,10.73,143.19,143.17,3.4933]
[1728393028415,14.2232,143.19,143.15,0.12502]
[1728393028619,10.73,143.19,143.15,0.12502]
[1728393028823,14.2231,143.19,143.16,3.4937]
[1728393030939,14.2235,143.17,143.15,0.12502]
[1728393031121,10.73,143.16,143.15,0.12502]
[1728393033228,14.2238,143.16,143.15,0.12502]
[1728393033431,19.2038,143.16,143.15,0.12502]
[1728393046938,14.2238,143.16,143.15,0.12502]
[1728393047241,19.2038,143.16,143.15,0.12502]
[1728393053041,15.71,143.16,143.09,2.89322]
[1728393053247,10.73,143.11,143.09,0.12502]
[1728393053544,10.73,143.1,143.03,0.12502]
[1728393053845,10.73,143.06,143.03,0.12502]
[1728393054042,10.73,143.06,143.05,3.4962]
[1728393055362,10.73,143.06,143.04,3.4966]
[1728393055842,10.73,143.06,143.05,3.4965]
[1728393056447,10.73,143.07,143.06,3.4962]
[1728393057150,10.73,143.07,143.03,0.12502]
[1728393057447,10.73,143.07,143.05,3.4964]
[1728393058040,10.73,143.07,143.06,3.4962]
[1728393058240,10.73,143.06,143.03,0.12502]
[1728393058540,10.73,143.06,143.05,3.4964]
[1728393060247,10.73,143.07,143.03,0.12502]
[1728393060438,15.71,143.07,143.06,3.4962]
[1728393061045,15.71,143.07,143.05,3.4963]
[1728393061267,15.71,143.07,143.03,0.12502]
[1728393061646,15.71,143.07,143.05,3.4963]
[1728393061845,15.71,143.07,143.03,0.12502]
[1728393062446,19.206,143.07,143.04,3.4965]
[1728393062650,15.71,143.07,143.03,0.12502]
[1728393063345,19.206,143.07,143.04,3.4965]
[1728393063543,10.73,143.06,143.04,3.4965]
[1728393064348,10.73,143.05,143.04,3.4965]
[1728393064550,10.73,143.05,143.03,3.62182]
[1728393064749,4.98,143.04,143.03,3.62182]
[1728393065553,10.73,143.05,143.04,3.4967]
[1728393065748,4.98,143.06,143.03,0.12502]
[1728393066457,4.98,143.06,143.05,3.4965]
[1728393067256,1.4838,143.06,143.03,0.12502]
[1728393067753,3.56615621,143.1,143.03,0.12502]
[1728393067955,223.0,143.2,143.07,3.4958]
[1728393067956,15.71,143.08,143.07,3.4958]
[1728393068153,15.71,143.08,143.03,10.85502]
[1728393068652,10.73,143.06,143.03,0.12502]
[1728393068848,3.57619663,143.1,142.97,0.12502]
[1728393068849,10.73,143.04,142.97,0.12502]
[1728393069157,10.73,143.02,142.98,10.73]
[1728393069953,10.73,143.02,143.0,3.4975]
[1728393071357,10.73,143.01,143.0,3.4975]
[1728393071868,4.98,143.03,143.02,3.4972]
[1728393072160,15.71,143.03,143.02,3.4972]
[1728393072854,10.73,143.03,143.02,3.4972]
[1728393075659,10.73,143.03,142.97,0.12502]
[1728393075855,10.73,143.01,142.97,0.12502]
[1728393076253,10.73,143.02,142.97,0.12502]
[1728393076657,10.73,143.02,142.97,10.85502]
[1728393077262,10.73,143.02,143.01,3.4973]
[1728393078064,14.2273,143.02,142.99,3.4978]
[1728393078369,10.73,143.0,142.99,3.4978]
[1728393079067,10.73,143.01,142.99,3.4978]
[1728393079263,10.73,143.01,143.0,3.4977]
[1728393082188,15.85,143.02,143.01,3.4974]
[1728393084167,15.85,143.02,143.0,3.4976]
[1728393084771,15.85,143.02,142.98,3.498]
[1728393084973,15.85,143.02,142.97,10.85502]
[1728393085171,10.73,143.01,142.97,10.85502]
[1728393085493,15.85,143.02,143.01,3.4974]
[1728393087667,3.7294,143.07,142.98,10.73]
[1728393087874,10.73,143.04,143.03,3.4968]
[1728393088478,10.73,143.04,143.02,3.4971]
[1728393088776,15.85,143.03,143.02,3.4971]
[1728393089764,15.85,143.03,143.01,3.4973]
[1728393092578,15.85,143.03,143.02,3.4972]
[1728393094477,15.85,143.03,143.01,3.4973]
[1728393094776,10.73,143.02,143.01,3.4973]
[1728393100571,10.73,143.02,143.01,3.4974]
[1728393105186,5.12,143.03,142.97,10.85502]
[1728393105480,5.12,143.03,143.02,3.4972]
[1728393108781,15.85,143.03,143.02,3.4972]
[1728393109086,19.35769534,143.03,143.01,3.4973]
[1728393109284,10.73,143.02,143.01,3.4973]
[1728393110780,15.85,143.03,142.97,10.85502]
[1728393111080,15.85,143.03,143.02,3.4972]
[1728393115489,5.12,143.03,143.02,3.4972]
[1728393115683,15.85,143.03,143.02,3.4972]
[1728393116785,5.06,143.04,143.0,10.73]
[1728393117090,15.79,143.04,142.98,14.8204]
[1728393117287,15.79,143.04,143.02,3.4971]
[1728393118394,10.73,143.03,143.02,3.4971]
[1728393118686,14.19957202,143.03,142.99,3.4979]
[1728393118893,3.46957202,143.03,142.99,3.4979]
[1728393119081,10.73,143.0,142.97,0.12502]
[1728393119578,10.73,143.0,142.99,3.4979]
[1728393120296,10.73,143.0,142.97,0.12502]
[1728393120875,10.73,143.0,142.99,3.4979]
[1728393122578,15.79,143.01,143.0,3.4975]
[1728393125389,15.79,143.01,142.97,0.12502]
[1728393125694,10.73,142.98,142.97,0.12502]
[1728393126393,10.73,142.98,142.97,3.62342]
[1728393126895,10.73,142.98,142.97,0.12502]
[1728393127190,15.79,142.98,142.92,0.12518]
[1728393127390,10.73,142.94,142.92,0.12518]
[1728393127579,10.73,142.94,142.93,3.4994]
[1728393127986,8.5583,142.98,142.95,3.4988]
[1728393128183,10.73,142.96,142.92,0.12518]
[1728393128384,10.73,142.94,142.92,0.12518]
[1728393128989,10.73,142.94,142.93,3.4994]
[1728393130994,5.06,142.97,142.92,0.12518]
[1728393131212,8.5585,142.97,142.94,3.4991]
[1728393131389,10.73,142.95,142.94,3.4991]
[1728393131592,5.06,142.97,142.92,0.12518]
[1728393131788,1.4423,143.02,142.92,0.12518]
[1728393131789,5.06,142.99,142.93,10.73]
[1728393131992,15.79,142.99,142.94,10.73]
[1728393132200,1.3611,143.05,142.95,10.73]
[1728393132503,10.73,143.0,142.95,10.73]
[1728393132701,10.73,142.99,142.94,5.06]
[1728393132902,10.73,142.99,142.98,3.4982]
[1728393133591,10.73,142.99,142.94,15.79]
[1728393134504,10.73,142.99,142.98,3.4982]
[1728393136997,3.4976,143.01,142.98,3.4982]
[1728393137207,10.73,142.99,142.98,3.4982]
[1728393140005,10.73,142.99,142.93,9.4271]
[1728393140205,10.73,142.97,142.93,20.1571]
[1728393140602,10.73,142.97,142.96,3.4987]
[1728393141000,10.73,142.98,142.97,3.4982]
[1728393149713,10.73,142.98,142.93,15.0171]
[1728393149914,10.73,142.98,142.97,3.4984]
[1728393150818,10.73,142.98,142.93,4.2871]
[1728393151023,10.73,142.96,142.95,3.4987]
[1728393151720,10.73,142.96,142.94,3.499]
[1728393152420,10.73,142.95,142.94,3.4991]
[1728393153122,10.73,142.95,142.93,3.4993]
[1728393153317,10.73,142.94,142.93,3.4993]
[1728393153622,10.73,142.94,142.87,1.3812]
[1728393153810,10.73,142.88,142.87,1.3812]
[1728393154009,2.7306,142.95,142.87,1.3812]
[1728393154010,5.14,142.92,142.87,1.3812]
[1728393154314,2.7306,142.95,142.88,10.73]
[1728393154315,10.73,142.93,142.88,10.73]
[1728393154511,5.14,142.95,142.88,10.73]
[1728393154908,10.73,142.93,142.88,10.73]
[1728393155113,10.73,142.93,142.92,3.4996]
[1728393155324,10.73,142.93,142.88,10.73]
[1728393155821,10.73,142.93,142.92,3.4996]
[1728393159122,10.73,142.93,142.87,17.2512]
[1728393159317,10.73,142.92,142.87,17.2512]
[1728393159722,10.73,142.92,142.91,3.4999]
[1728393160723,10.73,142.92,142.9,3.5]
[1728393160915,10.73,142.91,142.9,3.5]
[1728393161257,10.73,142.91,142.87,6.5212]
[1728393161258,10.73,142.91,142.89,3.5002]
[1728393161426,5.14,142.95,142.89,3.5002]
[1728393161619,14.2295,142.93,142.87,6.5212]
[1728393161814,10.73,142.9,142.89,3.5004]
[1728393166829,10.73,142.9,142.85,0.12502]
[1728393167034,10.73,142.88,142.85,0.12502]
[1728393167434,10.73,142.88,142.87,3.5009]
[1728393170225,10.73,142.89,142.85,0.12502]
[1728393170531,10.73,142.89,142.88,3.5006]
[1728393173033,10.73,142.9,142.89,3.5004]
[1728393174029,10.73,142.9,142.86,10.73]
[1728393174030,5.14,142.94,142.93,3.4993]
[1728393174237,15.87,142.94,142.93,3.4993]
[1728393175034,10.73,142.94,142.93,3.4993]
[1728393176335,5.14,142.96,142.88,12.0824]
[1728393176538,5.14,142.96,142.94,3.499]
[1728393176729,10.73,142.95,142.94,3.499]
[1728393179832,10.73,142.95,142.89,5.14]
[1728393180139,10.73,142.95,142.93,3.4993]
[1728393180444,5.26502,142.97,142.89,15.87]
[1728393180445,10.73,142.94,142.89,15.87]
[1728393180831,10.73,142.91,142.88,1.3524]
[1728393181031,10.73,142.91,142.9,3.5001]
[1728393182639,10.73,142.91,142.87,1.3203]
[1728393182841,10.73,142.9,142.85,5.26502]
[1728393183038,10.73,142.9,142.88,3.5005]
[1728393183740,10.73,142.89,142.88,3.5005]
[1728393184139,3.4994,142.93,142.86,10.73]
[1728393184344,10.73,142.9,142.86,10.73]
[1728393185247,10.73,142.9,142.89,3.5004]
[1728393188740,3.4995,142.93,142.9,3.5001]
[1728393189052,10.73,142.91,142.9,3.5001]
[1728393191139,5.14,142.94,142.86,10.73]
[1728393191341,8.6393,142.94,142.91,3.4999]
[1728393191536,10.73,142.92,142.91,3.4999]
[1728393195753,10.73,142.92,142.85,15.99502]
[1728393195959,10.73,142.9,142.89,3.5002]
[1728393196246,10.73,142.9,142.85,5.26502]
[1728393196448,10.73,142.88,142.85,0.12502]
[1728393196650,10.73,142.87,142.85,0.12502]
[1728393196843,10.73,142.88,142.85,0.12502]
[1728393198554,10.73,142.88,142.87,3.5007]
[1728393199050,10.73,142.88,142.85,0.12502]
[1728393199245,5.1,142.91,142.86,3.501]
[1728393199246,10.73,142.87,142.86,3.501]
[1728393201063,10.73,142.87,142.85,0.12502]
[1728393201351,10.73,142.86,142.85,3.62622]
[1728393201555,10.73,142.86,142.85,0.12502]
[1728393203451,14.2311,142.86,142.85,0.12502]
[1728393204353,10.73,142.86,142.85,0.12502]
[1728393205155,10.73,142.86,142.85,3.62642]
[1728393206651,1.4355,142.93,142.87,3.5009]
[1728393206850,10.73,142.87,142.85,0.12502]
[1728393207352,10.73,142.86,142.85,3.62642]
[1728393211758,10.73,142.86,142.85,0.12502]
[1728393212961,10.73,142.86,142.83,3.5017]
[1728393213187,5.1,142.89,142.83,3.5017]
[1728393213188,10.73,142.84,142.83,3.5017]
[1728393215063,10.73,142.84,142.83,3.5018]
[1728393218563,8.6009,142.87,142.79,19.50991507]
[1728393218762,8.6009,142.87,142.84,3.5014]
[1728393219066,10.73,142.85,142.84,3.5014]
[1728393219660,8.6009,142.87,142.81,10.73]
[1728393219661,5.1,142.87,142.81,10.73]
[1728393219872,5.1,142.87,142.86,3.5011]
[1728393220670,15.83,142.87,142.86,3.5011]
[1728393221270,10.73,142.87,142.86,3.5011]
[1728393224370,5.01479126,142.91,142.84,10.73]
[1728393224371,5.1,142.9,142.84,10.73]
[1728393224577,10.73,142.89,142.84,10.73]
[1728393224876,10.73,142.89,142.88,3.5006]
[1728393228784,5.22502,142.91,142.9,3.5001]
[1728393228984,15.95502,142.91,142.9,3.5001]
[1728393229184,15.95502,142.91,142.83,1.4122]
[1728393229383,3.5004,142.89,142.87,3.5007]
[1728393229583,96.93108477,142.9,142.83,1.4122]
[1728393230085,100.43128477,142.9,142.83,1.4122]
[1728393230489,96.93108477,142.9,142.83,1.4122]
[1728393230688,3.5005,142.89,142.86,3.5009]
[1728393230982,10.73,142.86,142.83,1.4122]
[1728393231188,10.73,142.86,142.85,3.5014]
[1728393236275,10.73,142.86,142.84,3.5015]